[Event "Early-Titled-Tuesday-Blitz-January-30-2024"]
[Site "Chess.com"]
[Date "2024.01.30"]
[Round "9"]
[White "MikaelyanArman"]
[Black "Anton_Demchenko"]
[Result "1-0"]
[WhiteElo "2860"]
[BlackElo "2932"]
[TimeControl "180+1"]
[EndTime "9:48:54 PST"]
[Termination "MikaelyanArman won on time"]

1. d4 {[%clk 0:03:00.9]} 1... Nf6 {[%clk 0:03:00.2]} 2. Nf3 {[%clk 0:02:59.7]}
2... g6 {[%clk 0:03:00.5]} 3. Nbd2 {[%clk 0:03:00.4]} 3... d5 {[%clk 0:02:56.2]}
4. e3 {[%clk 0:02:58.8]} 4... a5 {[%clk 0:02:51.6]} 5. c4 {[%clk 0:02:58.5]}
5... c6 {[%clk 0:02:49.6]} 6. Be2 {[%clk 0:02:33.9]} 6... Bg7 {[%clk 0:02:49.4]}
7. O-O {[%clk 0:02:33.2]} 7... O-O {[%clk 0:02:50]} 8. b3 {[%clk 0:02:32.1]}
8... Bf5 {[%clk 0:02:41.3]} 9. Ba3 {[%clk 0:02:18.1]} 9... Re8 {[%clk
0:02:35.1]} 10. Rc1 {[%clk 0:02:15.1]} 10... e6 {[%clk 0:02:13.2]} 11. Nh4
{[%clk 0:02:07.1]} 11... Nbd7 {[%clk 0:02:04.8]} 12. h3 {[%clk 0:01:57.7]} 12...
h5 {[%clk 0:01:42.4]} 13. cxd5 {[%clk 0:01:41]} 13... cxd5 {[%clk 0:01:25.4]}
14. Nxf5 {[%clk 0:01:38.4]} 14... exf5 {[%clk 0:01:23.2]} 15. Bb5 {[%clk
0:01:35.2]} 15... Re6 {[%clk 0:01:09.5]} 16. Qc2 {[%clk 0:01:33]} 16... Bf8
{[%clk 0:01:04.8]} 17. Bxf8 {[%clk 0:01:29.8]} 17... Nxf8 {[%clk 0:01:04.9]} 18.
Qc7 {[%clk 0:01:26.7]} 18... Re7 {[%clk 0:01:02.9]} 19. Qxd8 {[%clk 0:01:23.3]}
19... Rxd8 {[%clk 0:01:03.8]} 20. Nf3 {[%clk 0:01:05.2]} 20... Ne6 {[%clk
0:01:03.6]} 21. g3 {[%clk 0:01:05.8]} 21... Ne4 {[%clk 0:00:55.6]} 22. Ne5
{[%clk 0:01:03.2]} 22... Kg7 {[%clk 0:00:51.7]} 23. Rc2 {[%clk 0:01:01.7]} 23...
h4 {[%clk 0:00:41.3]} 24. gxh4 {[%clk 0:00:52.7]} 24... Rh8 {[%clk 0:00:40.3]}
25. Nf3 {[%clk 0:00:53.1]} 25... f4 {[%clk 0:00:37.6]} 26. Bd3 {[%clk
0:00:47.4]} 26... fxe3 {[%clk 0:00:36.4]} 27. fxe3 {[%clk 0:00:48.3]} 27... Nd8
{[%clk 0:00:23.3]} 28. Rg2 {[%clk 0:00:47.2]} 28... Nc6 {[%clk 0:00:20.1]} 29.
Kh2 {[%clk 0:00:44.4]} 29... Nd6 {[%clk 0:00:16.5]} 30. Re1 {[%clk 0:00:32.7]}
30... Kf8 {[%clk 0:00:12.8]} 31. a3 {[%clk 0:00:25.1]} 31... Ke8 {[%clk
0:00:12.8]} 32. Rc2 {[%clk 0:00:22.1]} 32... Kd7 {[%clk 0:00:11.7]} 33. Kg3
{[%clk 0:00:22.6]} 33... Rhe8 {[%clk 0:00:11.6]} 34. Kf2 {[%clk 0:00:22.9]}
34... Rh8 {[%clk 0:00:10.9]} 35. Rec1 {[%clk 0:00:19.5]} 35... Ne4+ {[%clk
0:00:08.7]} 36. Bxe4 {[%clk 0:00:18.1]} 36... dxe4 {[%clk 0:00:09.2]} 37. Nd2
{[%clk 0:00:13.7]} 37... Rxh4 {[%clk 0:00:07.9]} 38. d5 {[%clk 0:00:14.2]} 38...
Ne5 {[%clk 0:00:07]} 39. Kg3 {[%clk 0:00:14.7]} 39... Rh5 {[%clk 0:00:04.9]} 40.
Nxe4 {[%clk 0:00:14]} 1-0

[Event "Early-Titled-Tuesday-Blitz-January-30-2024"]
[Site "Chess.com"]
[Date "2024.01.30"]
[Round "9"]
[White "Kaissa10"]
[Black "Darius321"]
[Result "0-1"]
[WhiteElo "2277"]
[BlackElo "2368"]
[TimeControl "180+1"]
[EndTime "9:48:54 PST"]
[Termination "Darius321 won on time"]

1. e4 {[%clk 0:03:00.9]} 1... c5 {[%clk 0:02:58.9]} 2. Nf3 {[%clk 0:03:00.7]}
2... g6 {[%clk 0:02:58.6]} 3. d4 {[%clk 0:02:59.8]} 3... cxd4 {[%clk 0:02:59.5]}
4. Nxd4 {[%clk 0:03:00.3]} 4... Bg7 {[%clk 0:02:59.9]} 5. c4 {[%clk 0:03:00.2]}
5... Nc6 {[%clk 0:03:00]} 6. Be3 {[%clk 0:03:00.9]} 6... Nf6 {[%clk 0:03:00.3]}
7. Nc3 {[%clk 0:03:01.4]} 7... Qa5 {[%clk 0:03:00.3]} 8. Qd3 {[%clk 0:02:50]}
8... Ne5 {[%clk 0:02:52.1]} 9. Qc2 {[%clk 0:02:48]} 9... d6 {[%clk 0:02:49.9]}
10. Be2 {[%clk 0:02:45.7]} 10... O-O {[%clk 0:02:49.2]} 11. O-O {[%clk
0:02:45.7]} 11... b6 {[%clk 0:02:49.7]} 12. a3 {[%clk 0:02:28.1]} 12... Neg4
{[%clk 0:02:49.8]} 13. b4 {[%clk 0:02:26.9]} 13... Nxe3 {[%clk 0:02:42.5]} 14.
fxe3 {[%clk 0:02:12.9]} 14... Qg5 {[%clk 0:02:41.3]} 15. Qd2 {[%clk 0:01:57]}
15... Bg4 {[%clk 0:02:33.2]} 16. Rae1 {[%clk 0:01:48.2]} 16... Bxe2 {[%clk
0:02:26.2]} 17. Ncxe2 {[%clk 0:01:49.1]} 17... Rac8 {[%clk 0:02:25]} 18. Qd3
{[%clk 0:01:45.4]} 18... Ng4 {[%clk 0:02:22.4]} 19. Ng3 {[%clk 0:01:40.5]} 19...
Ne5 {[%clk 0:02:19.6]} 20. Qb3 {[%clk 0:01:33.9]} 20... Nxc4 {[%clk 0:02:17.9]}
21. Nf3 {[%clk 0:01:34.1]} 21... Qb5 {[%clk 0:02:02.2]} 22. Re2 {[%clk
0:01:29.3]} 22... a5 {[%clk 0:01:55.9]} 23. Rc1 {[%clk 0:01:17.6]} 23... a4
{[%clk 0:01:53.3]} 24. Qa2 {[%clk 0:01:10.3]} 24... Ne5 {[%clk 0:01:39.7]} 25.
Rec2 {[%clk 0:01:06.3]} 25... Rxc2 {[%clk 0:01:30.4]} 26. Qxc2 {[%clk
0:01:05.2]} 26... Bh6 {[%clk 0:01:15.4]} 27. Nf1 {[%clk 0:01:02.1]} 27... Nxf3+
{[%clk 0:01:11.5]} 28. gxf3 {[%clk 0:01:02]} 28... Qg5+ {[%clk 0:01:10.8]} 29.
Kf2 {[%clk 0:01:01.3]} 29... Qh4+ {[%clk 0:01:10.7]} 30. Kg2 {[%clk 0:00:59.9]}
30... f5 {[%clk 0:01:08]} 31. exf5 {[%clk 0:00:49]} 31... Rxf5 {[%clk
0:01:07.6]} 32. Ng3 {[%clk 0:00:48.4]} 32... Rd5 {[%clk 0:00:54.1]} 33. Re1
{[%clk 0:00:13.4]} 33... b5 {[%clk 0:00:44.1]} 34. Re2 {[%clk 0:00:10.3]} 34...
Qc4 {[%clk 0:00:42.4]} 35. Qxc4 {[%clk 0:00:07]} 35... bxc4 {[%clk 0:00:43.3]}
36. Rc2 {[%clk 0:00:07.5]} 36... Rd3 {[%clk 0:00:39.2]} 37. Rxc4 {[%clk
0:00:06.3]} 37... Rxa3 {[%clk 0:00:39.4]} 38. b5 {[%clk 0:00:06.2]} 38... Bxe3
{[%clk 0:00:33.4]} 39. Ne4 {[%clk 0:00:03.6]} 39... d5 {[%clk 0:00:30.3]} 40.
Rc8+ {[%clk 0:00:02.4]} 40... Kf7 {[%clk 0:00:30.5]} 41. Ng3 {[%clk 0:00:01.9]}
41... Rb3 {[%clk 0:00:27.9]} 42. Ra8 {[%clk 0:00:02.5]} 42... a3 {[%clk
0:00:28]} 43. Nf1 {[%clk 0:00:02.5]} 43... Bc5 {[%clk 0:00:27.6]} 44. Kg3 {[%clk
0:00:01.5]} 44... Rxb5 {[%clk 0:00:27.5]} 0-1

[Event "Early-Titled-Tuesday-Blitz-January-30-2024"]
[Site "Chess.com"]
[Date "2024.01.30"]
[Round "9"]
[White "deepfear"]
[Black "Resignify"]
[Result "0-1"]
[WhiteElo "1955"]
[BlackElo "2269"]
[TimeControl "180+1"]
[EndTime "9:48:55 PST"]
[Termination "Resignify won on time"]

1. e4 {[%clk 0:02:59.6]} 1... d6 {[%clk 0:02:56.4]} 2. d4 {[%clk 0:02:58.8]}
2... Nf6 {[%clk 0:02:56]} 3. Nc3 {[%clk 0:02:47.2]} 3... g6 {[%clk 0:02:55.9]}
4. f4 {[%clk 0:02:43.8]} 4... Bg7 {[%clk 0:02:55.4]} 5. Nf3 {[%clk 0:02:43.8]}
5... O-O {[%clk 0:02:54.5]} 6. Bc4 {[%clk 0:02:40]} 6... Nxe4 {[%clk 0:02:50.2]}
7. Nxe4 {[%clk 0:02:39.3]} 7... d5 {[%clk 0:02:45.9]} 8. Bd3 {[%clk 0:02:30.3]}
8... dxe4 {[%clk 0:02:45.6]} 9. Bxe4 {[%clk 0:02:31.2]} 9... c6 {[%clk
0:02:41.8]} 10. O-O {[%clk 0:02:29.2]} 10... Nd7 {[%clk 0:02:34.7]} 11. c3
{[%clk 0:02:21.9]} 11... Qb6 {[%clk 0:02:28.6]} 12. Qb3 {[%clk 0:01:55.3]} 12...
Qc7 {[%clk 0:02:07.1]} 13. Bd3 {[%clk 0:01:20.6]} 13... Nb6 {[%clk 0:02:01.1]}
14. Ne5 {[%clk 0:01:13.5]} 14... Be6 {[%clk 0:01:57]} 15. Qc2 {[%clk 0:01:12.4]}
15... f6 {[%clk 0:01:43.3]} 16. Nf3 {[%clk 0:01:07.8]} 16... Bf7 {[%clk
0:01:30.2]} 17. f5 {[%clk 0:01:01.7]} 17... g5 {[%clk 0:01:18.6]} 18. h3 {[%clk
0:00:34.2]} 18... Rfd8 {[%clk 0:01:09.6]} 19. Bd2 {[%clk 0:00:31]} 19... c5
{[%clk 0:01:02]} 20. Rae1 {[%clk 0:00:24.6]} 20... Rac8 {[%clk 0:00:54]} 21. Qd1
{[%clk 0:00:12]} 21... Qd7 {[%clk 0:00:39.1]} 22. Bc2 {[%clk 0:00:09.2]} 22...
Qc6 {[%clk 0:00:30.8]} 23. Qe2 {[%clk 0:00:08.8]} 23... Bf8 {[%clk 0:00:28]} 24.
Bb3 {[%clk 0:00:07.8]} 24... Bxb3 {[%clk 0:00:25]} 25. axb3 {[%clk 0:00:08.7]}
25... Kf7 {[%clk 0:00:18.2]} 26. Qe6+ {[%clk 0:00:07.7]} 26... Qxe6 {[%clk
0:00:17.5]} 27. Rxe6 {[%clk 0:00:08.6]} 27... Nd5 {[%clk 0:00:10.4]} 28. Rfe1
{[%clk 0:00:07]} 28... Rd6 {[%clk 0:00:07]} 29. g4 {[%clk 0:00:03.8]} 29... Rxe6
{[%clk 0:00:06.1]} 30. Rxe6 {[%clk 0:00:04.6]} 30... Nc7 {[%clk 0:00:05.7]} 31.
Re1 {[%clk 0:00:03.8]} 31... cxd4 {[%clk 0:00:03.8]} 32. Nxd4 {[%clk 0:00:03.8]}
32... Rd8 {[%clk 0:00:04.3]} 33. Bc1 {[%clk 0:00:03.1]} 33... Rd6 {[%clk
0:00:03.9]} 34. b4 {[%clk 0:00:02.5]} 34... a6 {[%clk 0:00:04]} 35. Be3 {[%clk
0:00:02.1]} 35... e6 {[%clk 0:00:02.8]} 36. fxe6+ {[%clk 0:00:01.6]} 36... Nxe6
{[%clk 0:00:02.5]} 0-1

[Event "Early-Titled-Tuesday-Blitz-January-30-2024"]
[Site "Chess.com"]
[Date "2024.01.30"]
[Round "9"]
[White "Dinosaurio_1975"]
[Black "SabinaFoisor"]
[Result "1-0"]
[WhiteElo "2579"]
[BlackElo "2376"]
[TimeControl "180+1"]
[EndTime "9:49:00 PST"]
[Termination "Dinosaurio_1975 won on time"]

1. e4 {[%clk 0:03:00.9]} 1... c6 {[%clk 0:02:57.6]} 2. d4 {[%clk 0:03:00.9]}
2... d5 {[%clk 0:02:56.9]} 3. e5 {[%clk 0:02:55]} 3... Bf5 {[%clk 0:02:56.4]} 4.
Bd3 {[%clk 0:02:55.3]} 4... Bxd3 {[%clk 0:02:55.8]} 5. Qxd3 {[%clk 0:02:56.2]}
5... e6 {[%clk 0:02:56.2]} 6. c3 {[%clk 0:02:57.1]} 6... c5 {[%clk 0:02:53.1]}
7. Ne2 {[%clk 0:02:58]} 7... Nc6 {[%clk 0:02:52.8]} 8. O-O {[%clk 0:02:57.9]}
8... Nge7 {[%clk 0:02:51.7]} 9. dxc5 {[%clk 0:02:55.3]} 9... Nxe5 {[%clk
0:02:47.1]} 10. Qg3 {[%clk 0:02:53.2]} 10... N5g6 {[%clk 0:02:43.7]} 11. Nd4
{[%clk 0:02:46.7]} 11... Nc6 {[%clk 0:02:36.5]} 12. b4 {[%clk 0:02:37.8]} 12...
Be7 {[%clk 0:02:27.6]} 13. a4 {[%clk 0:02:29.9]} 13... O-O {[%clk 0:02:26.3]}
14. Be3 {[%clk 0:02:28.9]} 14... a5 {[%clk 0:02:20.2]} 15. b5 {[%clk 0:02:24.8]}
15... Nce5 {[%clk 0:02:17.2]} 16. Nb3 {[%clk 0:02:03.3]} 16... Nc4 {[%clk
0:01:50.3]} 17. N1d2 {[%clk 0:01:56]} 17... f5 {[%clk 0:01:39.3]} 18. f4 {[%clk
0:01:39.1]} 18... Bh4 {[%clk 0:01:15.9]} 19. Qf3 {[%clk 0:01:35.2]} 19... e5
{[%clk 0:01:13.8]} 20. fxe5 {[%clk 0:01:24.7]} 20... Ngxe5 {[%clk 0:01:04.9]}
21. Qf4 {[%clk 0:00:57.6]} 21... g5 {[%clk 0:00:59.1]} 22. Qd4 {[%clk
0:00:53.9]} 22... f4 {[%clk 0:00:31.4]} 23. Bf2 {[%clk 0:00:49.9]} 23... Bxf2+
{[%clk 0:00:30.1]} 24. Rxf2 {[%clk 0:00:49.1]} 24... Ng4 {[%clk 0:00:26.7]} 25.
Re2 {[%clk 0:00:43.1]} 25... Nce3 {[%clk 0:00:24.5]} 26. Nf1 {[%clk 0:00:31.2]}
26... Qf6 {[%clk 0:00:22.2]} 27. h3 {[%clk 0:00:29]} 27... Qxd4 {[%clk
0:00:19.2]} 28. cxd4 {[%clk 0:00:18.5]} 28... Nxf1 {[%clk 0:00:19.4]} 29. Kxf1
{[%clk 0:00:18.1]} 29... Ne3+ {[%clk 0:00:20.3]} 30. Kf2 {[%clk 0:00:18.6]}
30... Rae8 {[%clk 0:00:19.8]} 31. Nxa5 {[%clk 0:00:15.8]} 31... Rf7 {[%clk
0:00:18.8]} 32. c6 {[%clk 0:00:15.2]} 32... b6 {[%clk 0:00:17]} 33. Nb7 {[%clk
0:00:15.2]} 33... Ref8 {[%clk 0:00:13.1]} 34. a5 {[%clk 0:00:12.9]} 34... bxa5
{[%clk 0:00:12.9]} 35. b6 {[%clk 0:00:10.8]} 35... h5 {[%clk 0:00:13.8]} 36. c7
{[%clk 0:00:11]} 36... g4 {[%clk 0:00:10.9]} 37. Nd8 {[%clk 0:00:10.5]} 37...
g3+ {[%clk 0:00:08.7]} 38. Kf3 {[%clk 0:00:10.1]} 38... Nf5 {[%clk 0:00:04.5]}
39. Rd2 {[%clk 0:00:09.5]} 39... Re7 {[%clk 0:00:01.8]} 40. c8=Q {[%clk
0:00:06.1]} 1-0

[Event "Early-Titled-Tuesday-Blitz-January-30-2024"]
[Site "Chess.com"]
[Date "2024.01.30"]
[Round "9"]
[White "adotand"]
[Black "chucksterf10"]
[Result "1-0"]
[WhiteElo "2831"]
[BlackElo "2621"]
[TimeControl "180+1"]
[EndTime "9:49:03 PST"]
[Termination "adotand won by resignation"]

1. e4 {[%clk 0:02:56.3]} 1... c5 {[%clk 0:02:59.7]} 2. Nf3 {[%clk 0:02:56.9]}
2... d6 {[%clk 0:02:59]} 3. Bc4 {[%clk 0:02:57.4]} 3... e6 {[%clk 0:02:56.7]} 4.
O-O {[%clk 0:02:57]} 4... a6 {[%clk 0:02:57]} 5. a4 {[%clk 0:02:56.3]} 5... Nf6
{[%clk 0:02:57.2]} 6. Re1 {[%clk 0:02:56.3]} 6... Nc6 {[%clk 0:02:57.2]} 7. c3
{[%clk 0:02:56.7]} 7... Be7 {[%clk 0:02:54.1]} 8. Bb3 {[%clk 0:02:53.7]} 8... e5
{[%clk 0:02:43.2]} 9. d3 {[%clk 0:02:53.2]} 9... O-O {[%clk 0:02:42.5]} 10. Bg5
{[%clk 0:02:51.1]} 10... Bg4 {[%clk 0:02:42]} 11. Nbd2 {[%clk 0:02:50.6]} 11...
b5 {[%clk 0:02:42.2]} 12. h3 {[%clk 0:02:50.3]} 12... Bh5 {[%clk 0:02:39.1]} 13.
Bxf6 {[%clk 0:02:48.3]} 13... Bxf6 {[%clk 0:02:39]} 14. Nf1 {[%clk 0:02:45.4]}
14... Na5 {[%clk 0:02:34.2]} 15. Bd5 {[%clk 0:02:45]} 15... Ra7 {[%clk
0:02:32.5]} 16. axb5 {[%clk 0:02:43.2]} 16... Qb6 {[%clk 0:02:10.6]} 17. b4
{[%clk 0:02:39.5]} 17... cxb4 {[%clk 0:02:11.5]} 18. cxb4 {[%clk 0:02:40.4]}
18... Nb7 {[%clk 0:02:10.4]} 19. bxa6 {[%clk 0:02:28.8]} 19... Bxf3 {[%clk
0:02:07.4]} 20. Qxf3 {[%clk 0:02:27.4]} 20... Rxa6 {[%clk 0:02:08]} 21. Rxa6
{[%clk 0:02:23.8]} 21... Qxa6 {[%clk 0:02:08.9]} 22. Ng3 {[%clk 0:02:24.2]}
22... Qb6 {[%clk 0:02:02.9]} 23. Rb1 {[%clk 0:02:22.7]} 23... Nc5 {[%clk
0:01:58]} 24. b5 {[%clk 0:02:22.5]} 24... Na4 {[%clk 0:01:50.5]} 25. Bc4 {[%clk
0:02:17.2]} 25... Qc5 {[%clk 0:01:37.6]} 26. Nh5 {[%clk 0:02:16.3]} 26... Bd8
{[%clk 0:01:33.7]} 27. Rc1 {[%clk 0:02:04.5]} 27... Qd4 {[%clk 0:01:26.6]} 28.
Ng3 {[%clk 0:01:52.6]} 28... g6 {[%clk 0:01:25.4]} 29. Ne2 {[%clk 0:01:47.8]}
29... Qb2 {[%clk 0:01:24.8]} 30. Rf1 {[%clk 0:01:24.1]} 30... Kg7 {[%clk
0:01:15.7]} 31. g3 {[%clk 0:01:15.5]} 31... Bb6 {[%clk 0:01:10.9]} 32. h4 {[%clk
0:01:13.9]} 32... h5 {[%clk 0:01:10.9]} 33. Kg2 {[%clk 0:01:10.8]} 33... Bc5
{[%clk 0:01:04.7]} 34. Rh1 {[%clk 0:01:02.9]} 34... Nb6 {[%clk 0:01:02.8]} 35.
g4 {[%clk 0:01:00]} 35... hxg4 {[%clk 0:01:02.1]} 36. Qxg4 {[%clk 0:01:00.9]}
36... Nxc4 {[%clk 0:01:02.6]} 37. dxc4 {[%clk 0:01:00.9]} 37... Qc2 {[%clk
0:00:52.5]} 38. h5 {[%clk 0:01:00.9]} 38... Qxc4 {[%clk 0:00:51.1]} 39. Ng3
{[%clk 0:01:01.2]} 39... Kf6 {[%clk 0:00:42]} 40. hxg6 {[%clk 0:00:57.8]} 40...
fxg6 {[%clk 0:00:38.3]} 41. Rh7 {[%clk 0:00:56.3]} 41... Rf7 {[%clk 0:00:25.8]}
42. Rh6 {[%clk 0:00:53.4]} 42... Ke7 {[%clk 0:00:23]} 43. Nh1 {[%clk 0:00:50.9]}
43... Qxb5 {[%clk 0:00:18.4]} 44. Rxg6 {[%clk 0:00:50.6]} 44... Qc4 {[%clk
0:00:13.8]} 45. Rg8 {[%clk 0:00:50.8]} 45... Qe6 {[%clk 0:00:12.3]} 46. Re8+
{[%clk 0:00:50.7]} 46... Kxe8 {[%clk 0:00:11.7]} 47. Qxe6+ {[%clk 0:00:51.6]}
47... Re7 {[%clk 0:00:12.6]} 48. Qg8+ {[%clk 0:00:51.6]} 48... Kd7 {[%clk
0:00:13.1]} 49. Ng3 {[%clk 0:00:52.3]} 49... Kc6 {[%clk 0:00:10.9]} 50. Qd5+
{[%clk 0:00:52.2]} 50... Kc7 {[%clk 0:00:10.6]} 51. Nf5 {[%clk 0:00:53.1]} 51...
Rd7 {[%clk 0:00:10]} 52. Qa8 {[%clk 0:00:53.5]} 52... Kb6 {[%clk 0:00:09.4]} 53.
Kf3 {[%clk 0:00:53.9]} 53... Kc7 {[%clk 0:00:08.1]} 54. Qa5+ {[%clk 0:00:53.4]}
54... Kc6 {[%clk 0:00:08.4]} 55. Qa4+ {[%clk 0:00:53.7]} 55... Kc7 {[%clk
0:00:08.8]} 56. Qb5 {[%clk 0:00:53.6]} 56... Rf7 {[%clk 0:00:08.4]} 57. Ke2
{[%clk 0:00:53]} 57... Rh7 {[%clk 0:00:08.1]} 58. Qc4 {[%clk 0:00:51.3]} 58...
Kb6 {[%clk 0:00:07]} 59. Qd5 {[%clk 0:00:50.5]} 59... Rh1 {[%clk 0:00:06]} 60.
Nxd6 {[%clk 0:00:49.9]} 1-0

[Event "Early-Titled-Tuesday-Blitz-January-30-2024"]
[Site "Chess.com"]
[Date "2024.01.30"]
[Round "9"]
[White "FLYD"]
[Black "oogee"]
[Result "0-1"]
[WhiteElo "2042"]
[BlackElo "2313"]
[TimeControl "180+1"]
[EndTime "9:49:04 PST"]
[Termination "oogee won by resignation"]

1. e4 {[%clk 0:03:00.9]} 1... c5 {[%clk 0:02:58.6]} 2. Nf3 {[%clk 0:03:01.2]}
2... d6 {[%clk 0:02:58.2]} 3. d4 {[%clk 0:03:00.2]} 3... cxd4 {[%clk 0:02:58.4]}
4. Nxd4 {[%clk 0:03:01.1]} 4... Nf6 {[%clk 0:02:58.5]} 5. Nc3 {[%clk 0:03:01.5]}
5... a6 {[%clk 0:02:58.9]} 6. h4 {[%clk 0:03:01.4]} 6... Nc6 {[%clk 0:02:56.4]}
7. Bg5 {[%clk 0:02:58.6]} 7... Nd7 {[%clk 0:02:55.5]} 8. Qd2 {[%clk 0:02:45.9]}
8... h6 {[%clk 0:02:54.1]} 9. Be3 {[%clk 0:02:41.2]} 9... Nde5 {[%clk
0:02:53.7]} 10. O-O-O {[%clk 0:02:38.5]} 10... Ng4 {[%clk 0:02:52.1]} 11. Bc4
{[%clk 0:02:29.1]} 11... Nxe3 {[%clk 0:02:51.6]} 12. Qxe3 {[%clk 0:02:26.8]}
12... Ne5 {[%clk 0:02:49.7]} 13. Bb3 {[%clk 0:02:24.3]} 13... b5 {[%clk
0:02:49.9]} 14. f4 {[%clk 0:02:21.7]} 14... Nc4 {[%clk 0:02:45]} 15. Qe2 {[%clk
0:02:12]} 15... Na5 {[%clk 0:02:43]} 16. Bd5 {[%clk 0:02:06.8]} 16... Bb7 {[%clk
0:02:36.8]} 17. f5 {[%clk 0:01:47.8]} 17... Qb6 {[%clk 0:02:28.2]} 18. Qh5
{[%clk 0:01:36.4]} 18... Bxd5 {[%clk 0:02:26]} 19. Nxd5 {[%clk 0:01:36.5]} 19...
Qb7 {[%clk 0:02:24.7]} 20. Ne6 {[%clk 0:01:25.7]} 20... Rc8 {[%clk 0:02:14.8]}
21. Kb1 {[%clk 0:01:07.3]} 21... Rg8 {[%clk 0:01:59.2]} 22. Nd4 {[%clk
0:00:43.8]} 22... g6 {[%clk 0:01:54.8]} 23. Qe2 {[%clk 0:00:32.9]} 23... g5
{[%clk 0:01:49.6]} 24. hxg5 {[%clk 0:00:18.9]} 24... Rxg5 {[%clk 0:01:49.7]} 25.
Rhe1 {[%clk 0:00:18.8]} 25... Bg7 {[%clk 0:01:49.3]} 26. f6 {[%clk 0:00:17.2]}
26... Bxf6 {[%clk 0:01:44.4]} 27. Nxf6+ {[%clk 0:00:17.5]} 27... exf6 {[%clk
0:01:44.9]} 28. Nf5 {[%clk 0:00:18.1]} 28... Nc4 {[%clk 0:01:41.8]} 29. Qxc4
{[%clk 0:00:12]} 29... Rxc4 {[%clk 0:01:24.3]} 30. Nxd6+ {[%clk 0:00:12.2]}
30... Ke7 {[%clk 0:01:24.7]} 31. Nxb7 {[%clk 0:00:12.6]} 31... Rxg2 {[%clk
0:01:25]} 32. e5 {[%clk 0:00:11.5]} 32... Rcxc2 {[%clk 0:01:23]} 33. exf6+
{[%clk 0:00:10.9]} 33... Kxf6 {[%clk 0:01:23.1]} 34. Rf1+ {[%clk 0:00:05.9]}
34... Kg7 {[%clk 0:01:23.2]} 35. Rg1 {[%clk 0:00:06.5]} 35... Rxb2+ {[%clk
0:01:22.6]} 36. Ka1 {[%clk 0:00:07]} 36... Rxa2+ {[%clk 0:01:20.3]} 37. Kb1
{[%clk 0:00:07.4]} 37... Rb2+ {[%clk 0:01:19.8]} 38. Ka1 {[%clk 0:00:07.2]}
38... h5 {[%clk 0:01:18.9]} 39. Nc5 {[%clk 0:00:04.8]} 39... h4 {[%clk
0:01:16.2]} 40. Nd3 {[%clk 0:00:03.9]} 40... Ra2+ {[%clk 0:01:16.3]} 41. Kb1
{[%clk 0:00:04.2]} 41... h3 {[%clk 0:01:15.9]} 42. Nf4 {[%clk 0:00:04.4]} 42...
Rb2+ {[%clk 0:01:15.2]} 43. Ka1 {[%clk 0:00:04.5]} 43... Ra2+ {[%clk 0:01:15.2]}
44. Kb1 {[%clk 0:00:04.9]} 44... Rf2 {[%clk 0:01:13.8]} 45. Nxg2 {[%clk
0:00:02.8]} 45... hxg2 {[%clk 0:01:13.8]} 46. Ka1 {[%clk 0:00:03.4]} 46... b4
{[%clk 0:01:13.3]} 47. Kb1 {[%clk 0:00:03.8]} 47... a5 {[%clk 0:01:13.5]} 48.
Rc1 {[%clk 0:00:03.1]} 48... a4 {[%clk 0:01:11.8]} 49. Rce1 {[%clk 0:00:02.4]}
49... b3 {[%clk 0:01:11.5]} 50. Re4 {[%clk 0:00:02.3]} 50... Rf1+ {[%clk
0:01:09.1]} 51. Re1 {[%clk 0:00:02.5]} 51... Rf2 {[%clk 0:01:09.5]} 52. Re4
{[%clk 0:00:02.7]} 52... a3 {[%clk 0:01:09.8]} 53. Rg4+ {[%clk 0:00:02.9]} 53...
Kf8 {[%clk 0:01:09]} 54. R4xg2 {[%clk 0:00:03.8]} 54... a2+ {[%clk 0:01:07]} 55.
Ka1 {[%clk 0:00:04]} 55... Rf5 {[%clk 0:01:03.8]} 56. Rb2 {[%clk 0:00:03.8]}
56... Rf3 {[%clk 0:01:04]} 57. Rd1 {[%clk 0:00:03.1]} 57... f5 {[%clk 0:01:03]}
58. Rbd2 {[%clk 0:00:03.2]} 58... Kf7 {[%clk 0:01:01.6]} 59. Kb2 {[%clk
0:00:03.8]} 59... Kf6 {[%clk 0:01:00.8]} 60. Rd3 {[%clk 0:00:04.4]} 60... Rf2+
{[%clk 0:00:59.8]} 61. R1d2 {[%clk 0:00:05.1]} 61... Rf1 {[%clk 0:00:59.2]} 62.
Rd1 {[%clk 0:00:04.9]} 62... Rf2+ {[%clk 0:00:59.5]} 63. Kxb3 {[%clk 0:00:05.2]}
63... Re2 {[%clk 0:00:59.6]} 64. R3d2 {[%clk 0:00:05]} 64... Rxd2 {[%clk
0:00:59.6]} 65. Ra1 {[%clk 0:00:04.1]} 65... f4 {[%clk 0:00:58.6]} 66. Rf1
{[%clk 0:00:02.9]} 66... Kf5 {[%clk 0:00:57.2]} 0-1